fUSD/lending_fUSD_20250125
["ID","MTS","AMOUNT","RATE_DAILY","PERIOD"]
[350288048,1737769849257,-370.31462428,0.00017396,2]
[350288049,1737769849267,-500.0,0.00017396,2]
[350288050,1737769849277,-647.26,0.00017396,2]
[350288051,1737769849287,-500.0,0.00017396,2]
[350288052,1737769849297,-500.0,0.00017396,2]
[350288053,1737769849307,-714.31,0.00017396,2]
[350288054,1737769849317,-696.03,0.00017396,2]
[350288055,1737769849328,-500.0,0.00017396,2]
[350288056,1737769849339,-519.2,0.00017397,2]
[350288057,1737769849349,-863.29,0.00017397,2]
[350288058,1737769849359,-1033.74,0.00017397,2]
[350288059,1737769849370,-694.04,0.00017397,2]
[350288060,1737769849380,-1210.79,0.00017397,2]
[350288061,1737769849390,-1419.56,0.00017397,2]
[350288062,1737769849400,-500.0,0.00017397,2]
[350288063,1737769849410,-1263.23,0.00017397,2]
[350288064,1737769849420,-500.0,0.00017397,2]
[350288065,1737769849431,-712.33,0.00017397,2]
[350288066,1737769849441,-500.0,0.00017397,2]
[350288067,1737769849451,-500.0,0.00017397,2]
[350288068,1737769849460,-649.85,0.00017397,2]
[350288069,1737769849469,-588.51,0.00017397,2]
[350288070,1737769849479,-944.84,0.00017397,2]
[350288071,1737769849489,-511.38,0.00017397,2]
[350288072,1737769849498,-500.0,0.00017397,2]
[350288073,1737769849508,-500.0,0.00017397,2]
[350288074,1737769849517,-956.78,0.00017397,2]
[350288075,1737769849526,-500.0,0.00017397,2]
[350288076,1737769849536,-500.0,0.00017397,2]
[350288077,1737769849546,-810.83,0.00017397,2]
[350288078,1737769849555,-778.13,0.00017419,2]
[350288079,1737769849564,-151.66,0.00017452,2]
[350288080,1737769849574,-5558.0,0.000175,5]
[350288081,1737769849583,-500.0,0.00017533,2]
[350288082,1737769849592,-500.0,0.00017533,2]
[350288083,1737769849601,-333.31837452,0.00017533,2]
[350288084,1737769849611,-500.0,0.00017533,2]
[350288085,1737769849619,-500.0,0.00017533,2]
[350288086,1737769849628,-500.0,0.00017533,2]
[350288087,1737769849638,-726.04,0.00017533,2]
[350288088,1737769849647,-786.33,0.00017533,2]
[350288089,1737769849656,-500.0,0.00017533,2]
[350288090,1737769849666,-1141.35,0.00017533,2]
[350288091,1737769849675,-500.0,0.00017533,2]
[350288092,1737769849684,-500.0,0.00017533,2]
[350288093,1737769849693,-757.05,0.00017533,2]
[350288094,1737769849703,-1435.72,0.00017533,2]
[350288095,1737769849712,-632.77,0.00017533,2]
[350288096,1737769849722,-305.92975024,0.00017533,2]
[350288097,1737769849731,-500.0,0.00017533,2]
[350288098,1737769849741,-558.5,0.00017533,2]
[350288099,1737769849750,-500.0,0.00017533,2]
[350288100,1737769849763,-729.14,0.00017533,2]
[350288101,1737769849773,-326.18500343,0.00017533,2]
[350288102,1737769849782,-647.26,0.00017533,2]
[350288103,1737769849791,-500.0,0.00017533,2]
[350288104,1737769849801,-500.0,0.00017533,2]
[350288105,1737769849810,-714.31,0.00017533,2]
[350288106,1737769849818,-696.03,0.00017533,2]
[350288107,1737769849827,-184.08776287,0.00017533,2]
[350288108,1737769849836,-519.2,0.00017534,2]
[350288109,1737769849846,-863.29,0.00017534,2]
[350288110,1737769849855,-1033.74,0.00017534,2]
[350288111,1737769849864,-694.04,0.00017534,2]
[350288112,1737769849873,-1210.79,0.00017534,2]
[350288113,1737769849883,-1419.56,0.00017534,2]
[350288114,1737769849892,-500.0,0.00017534,2]
[350288115,1737769849901,-1263.23,0.00017534,2]
[350288116,1737769849911,-500.0,0.00017534,2]
[350288117,1737769849921,-712.33,0.00017534,2]
[350288118,1737769849932,-500.0,0.00017534,2]
[350288119,1737769849941,-153.92020406,0.00017534,2]
[350288120,1737769849950,-649.85,0.00017534,2]
[350288121,1737769849962,-588.51,0.00017534,2]
[350288122,1737769849973,-944.84,0.00017534,2]
[350288123,1737769849983,-511.38,0.00017534,2]
[350288124,1737769849994,-500.0,0.00017534,2]
[350288125,1737769850005,-500.0,0.00017534,2]
[350288126,1737769850016,-956.78,0.00017534,2]
[350288127,1737769850026,-500.0,0.00017534,2]
[350288128,1737769850036,-500.0,0.00017534,2]
[350288129,1737769850045,-810.83,0.00017534,2]
[350288130,1737769850055,-1058.0,0.00017545,2]
[350288131,1737769850064,-10321.24173911,0.00017574,2]
[350288132,1737769850073,-1000.0,0.00017622,2]
[350288133,1737769850083,-500.0,0.0001767,2]
[350288134,1737769850091,-500.0,0.0001767,2]
[350288135,1737769850100,-451.38537518,0.0001767,2]
[350288136,1737769850110,-507.0449749,0.0001767,2]
[350288137,1737769850119,-500.0,0.0001767,2]
[350288138,1737769850128,-726.04,0.0001767,2]
[350288139,1737769850137,-786.33,0.0001767,2]
[350288140,1737769850146,-500.0,0.0001767,2]
[350288141,1737769850156,-1141.35,0.0001767,2]
[350288142,1737769850165,-376.17790721,0.0001767,2]
[350288143,1737769850175,-578.9969748,0.0001767,2]
[350288144,1737769850184,-757.05,0.0001767,2]
[350288145,1737769850193,-1435.72,0.0001767,2]
[350288146,1737769850205,-632.77,0.0001767,2]
[350288147,1737769850214,-500.0,0.0001767,2]
[350288148,1737769850223,-558.5,0.0001767,2]
[350288149,1737769850233,-500.0,0.0001767,2]
[350288150,1737769850243,-729.14,0.0001767,2]
[350288151,1737769850251,-647.26,0.0001767,2]
[350288152,1737769850261,-500.0,0.0001767,2]
[350288153,1737769850270,-500.0,0.0001767,2]
[350288154,1737769850280,-714.31,0.0001767,2]
[350288155,1737769850290,-696.03,0.0001767,2]
[350288156,1737769850300,-519.2,0.00017671,2]
[350288157,1737769850310,-863.29,0.00017671,2]
[350288158,1737769850319,-1033.74,0.00017671,2]
[350288159,1737769850328,-694.04,0.00017671,2]
[350288160,1737769850337,-1210.79,0.00017671,2]
[350288161,1737769850347,-1419.56,0.00017671,2]
[350288162,1737769850356,-500.0,0.00017671,2]
[350288163,1737769850365,-1263.23,0.00017671,2]
[350288164,1737769850375,-500.0,0.00017671,2]
[350288165,1737769850384,-712.33,0.00017671,2]
[350288166,1737769850394,-500.0,0.00017671,2]
[350288167,1737769850402,-649.85,0.00017671,2]
[350288168,1737769850414,-588.51,0.00017671,2]
[350288169,1737769850424,-944.84,0.00017671,2]
[350288170,1737769850433,-511.38,0.00017671,2]
[350288171,1737769850442,-500.0,0.00017671,2]
[350288172,1737769850452,-500.0,0.00017671,2]
[350288173,1737769850461,-956.78,0.00017671,2]
[350288174,1737769850471,-500.0,0.00017671,2]
[350288175,1737769850480,-500.0,0.00017671,2]
[350288176,1737769850491,-810.83,0.00017671,2]
[350288177,1737769850502,-21501.5690989,0.00017681,2]
[350288178,1737769850511,-500.0,0.00017807,2]
[350288179,1737769850521,-235.01529832,0.00017807,2]
[350288180,1737769850530,-640.66490279,0.00017807,2]
[350288181,1737769850540,-726.04,0.00017807,2]
[350288182,1737769850549,-786.33,0.00017807,2]
[350288183,1737769850559,-500.0,0.00017807,2]
[350288184,1737769850568,-1141.35,0.00017807,2]
[350288185,1737769850578,-757.05,0.00017807,2]
[350288186,1737769850587,-1435.72,0.00017807,2]
[350288187,1737769850597,-632.77,0.00017807,2]
[350288188,1737769850607,-500.0,0.00017807,2]
[350288189,1737769850616,-558.5,0.00017807,2]
[350288190,1737769850626,-500.0,0.00017807,2]
[350288191,1737769850636,-729.14,0.00017807,2]
[350288192,1737769850645,-647.26,0.00017807,2]
[350288193,1737769850655,-500.0,0.00017807,2]
[350288194,1737769850665,-500.0,0.00017807,2]
[350288195,1737769850675,-714.31,0.00017807,2]
[350288196,1737769850683,-696.03,0.00017807,2]
[350288197,1737769850694,-519.2,0.00017808,2]
[350288198,1737769850704,-863.29,0.00017808,2]
[350288199,1737769850713,-1033.74,0.00017808,2]
[350288200,1737769850723,-694.04,0.00017808,2]
[350288201,1737769850732,-1210.79,0.00017808,2]
[350288202,1737769850742,-1419.56,0.00017808,2]
[350288203,1737769850753,-500.0,0.00017808,2]
[350288204,1737769850763,-1263.23,0.00017808,2]
[350288205,1737769850774,-500.0,0.00017808,2]
[350288206,1737769850783,-712.33,0.00017808,2]
[350288207,1737769850792,-500.0,0.00017808,2]
[350288208,1737769850802,-649.85,0.00017808,2]
[350288209,1737769850811,-588.51,0.00017808,2]
[350288210,1737769850824,-944.84,0.00017808,2]
[350288211,1737769850833,-511.38,0.00017808,2]
[350288212,1737769850843,-500.0,0.00017808,2]
[350288213,1737769850852,-558.12615174,0.00017808,2]
[350288214,1737769850862,-956.78,0.00017808,2]
[350288215,1737769850872,-500.0,0.00017808,2]
[350288216,1737769850882,-500.0,0.00017808,2]
[350288217,1737769850891,-810.83,0.00017808,2]
[350288218,1737769850901,-500.0,0.00017944,2]
[350288219,1737769850910,-726.04,0.00017944,2]
[350288220,1737769850921,-786.33,0.00017944,2]
[350288221,1737769850932,-500.0,0.00017944,2]
[350288222,1737769850942,-1141.35,0.00017944,2]
[350288223,1737769850951,-757.05,0.00017944,2]
[350288224,1737769850962,-1435.72,0.00017944,2]
[350288225,1737769850972,-632.77,0.00017944,2]
[350288226,1737769850983,-466.55347188,0.00017944,2]
[350288227,1737769850995,-558.5,0.00017944,2]
[350288228,1737769851004,-500.0,0.00017944,2]
[350288229,1737769851014,-729.14,0.00017944,2]
[350288230,1737769851023,-647.26,0.00017944,2]
[350288231,1737769851033,-500.0,0.00017944,2]
[350288232,1737769851042,-500.0,0.00017944,2]
[350288233,1737769851053,-714.31,0.00017944,2]
[350288234,1737769851062,-696.03,0.00017944,2]
[350288235,1737769851072,-519.2,0.00017945,2]
[350288236,1737769851081,-863.29,0.00017945,2]
[350288237,1737769851091,-1033.74,0.00017945,2]
[350288238,1737769851101,-694.04,0.00017945,2]
[350288239,1737769851111,-1210.79,0.00017945,2]
[350288240,1737769851120,-1419.56,0.00017945,2]
[350288241,1737769851130,-500.0,0.00017945,2]
[350288242,1737769851140,-1263.23,0.00017945,2]
[350288243,1737769851151,-500.0,0.00017945,2]
[350288244,1737769851160,-712.33,0.00017945,2]
[350288245,1737769851170,-639.41770238,0.00017945,2]
[350288246,1737769851180,-649.85,0.00017945,2]
[350288247,1737769851190,-588.51,0.00017945,2]
[350288248,1737769851199,-944.84,0.00017945,2]
[350288249,1737769851212,-511.38,0.00017945,2]
[350288250,1737769851221,-500.0,0.00017945,2]
[350288251,1737769851231,-956.78,0.00017945,2]
[350288252,1737769851241,-396.35792834,0.00017945,2]
[350288253,1737769851250,-500.0,0.00017945,2]
[350288254,1737769851260,-810.83,0.00017945,2]
[350288255,1737769851269,-500.0,0.00018081,2]
[350288256,1737769851279,-726.04,0.00018081,2]
[350288257,1737769851288,-786.33,0.00018081,2]
[350288258,1737769851298,-500.0,0.00018081,2]
[350288259,1737769851308,-1141.35,0.00018081,2]
[350288260,1737769851318,-757.05,0.00018081,2]
[350288261,1737769851327,-1435.72,0.00018081,2]
[350288262,1737769851337,-632.77,0.00018081,2]
[350288263,1737769851347,-558.5,0.00018081,2]
[350288264,1737769851356,-500.0,0.00018081,2]
[350288265,1737769851366,-729.14,0.00018081,2]
[350288266,1737769851375,-647.26,0.00018081,2]
[350288267,1737769851385,-500.0,0.00018081,2]
[350288268,1737769851395,-500.0,0.00018081,2]
[350288269,1737769851404,-714.31,0.00018081,2]
[350288270,1737769851413,-696.03,0.00018081,2]
[350288271,1737769851424,-519.2,0.00018082,2]
[350288272,1737769851434,-863.29,0.00018082,2]
[350288273,1737769851443,-1033.74,0.00018082,2]
[350288274,1737769851453,-694.04,0.00018082,2]
[350288275,1737769851463,-1210.79,0.00018082,2]
[350288276,1737769851473,-1419.56,0.00018082,2]
[350288277,1737769851484,-500.0,0.00018082,2]
[350288278,1737769851493,-1263.23,0.00018082,2]
[350288279,1737769851503,-500.0,0.00018082,2]
[350288280,1737769851513,-712.33,0.00018082,2]
[350288281,1737769851523,-649.85,0.00018082,2]
[350288282,1737769851533,-588.51,0.00018082,2]
[350288283,1737769851543,-944.84,0.00018082,2]
[350288284,1737769851552,-511.38,0.00018082,2]
[350288285,1737769851562,-500.0,0.00018082,2]
[350288286,1737769851571,-956.78,0.00018082,2]
[350288287,1737769851581,-500.0,0.00018082,2]
[350288288,1737769851591,-810.83,0.00018082,2]
[350288289,1737769851600,-184.48,0.00018082,2]
[350288290,1737769851609,-500.0,0.00018164,2]
[350288291,1737769851619,-10321.24173911,0.00018192,2]
[350288292,1737769851629,-665.585,0.00018201,2]
[350288293,1737769851638,-500.0,0.00018218,2]
[350288294,1737769851647,-726.04,0.00018218,2]
[350288295,1737769851657,-786.33,0.00018218,2]
[350288296,1737769851666,-500.0,0.00018218,2]
[350288297,1737769851677,-1141.35,0.00018218,2]
[350288298,1737769851686,-757.05,0.00018218,2]
[350288299,1737769851696,-1435.72,0.00018218,2]
[350288300,1737769851707,-632.77,0.00018218,2]
[350288301,1737769851717,-558.5,0.00018218,2]
[350288302,1737769851726,-462.37361287,0.00018218,2]
[350288303,1737769851736,-729.14,0.00018218,2]
[350288304,1737769851745,-647.26,0.00018218,2]
[350288305,1737769851754,-500.0,0.00018218,2]
[350288306,1737769851764,-500.0,0.00018218,2]
[350288307,1737769851773,-714.31,0.00018218,2]
[350288308,1737769851783,-696.03,0.00018218,2]
[350288309,1737769851793,-519.2,0.00018219,2]
[350288310,1737769851802,-863.29,0.00018219,2]
[350288311,1737769851812,-1033.74,0.00018219,2]
[350288312,1737769851822,-694.04,0.00018219,2]
[350288313,1737769851832,-1210.79,0.00018219,2]
[350288314,1737769851841,-1419.56,0.00018219,2]
[350288315,1737769851851,-203.47862405,0.00018219,2]
[350288316,1737769851968,-1263.23,0.00018219,2]
[350288317,1737769851979,-249.75363002,0.00018219,2]
[350288318,1737769851988,-712.33,0.00018219,2]
[350288319,1737769851999,-649.85,0.00018219,2]
[350288320,1737769852009,-588.51,0.00018219,2]
[350288321,1737769852018,-944.84,0.00018219,2]
[350288322,1737769852027,-511.38,0.00018219,2]
[350288323,1737769852037,-500.0,0.00018219,2]
[350288324,1737769852046,-956.78,0.00018219,2]
[350288325,1737769852055,-500.0,0.00018219,2]
[350288326,1737769852064,-810.83,0.00018219,2]
[350288327,1737769852074,-185.0,0.00018251,2]
[350288328,1737769852083,-21501.5690989,0.00018283,2]
[350288329,1737769852093,-550.8399456,0.00018355,2]
[350288330,1737769852103,-726.04,0.00018355,2]
[350288331,1737769852112,-786.33,0.00018355,2]
[350288332,1737769852121,-500.0,0.00018355,2]
[350288333,1737769852131,-1141.35,0.00018355,2]
[350288334,1737769852140,-757.05,0.00018355,2]
[350288335,1737769852149,-1435.72,0.00018355,2]
[350288336,1737769852158,-632.77,0.00018355,2]
[350288337,1737769852168,-558.5,0.00018355,2]
[350288338,1737769852178,-729.14,0.00018355,2]
[350288339,1737769852187,-647.26,0.00018355,2]
[350288340,1737769852197,-500.0,0.00018355,2]
[350288341,1737769852207,-453.79101716,0.00018355,2]
[350288342,1737769852217,-714.31,0.00018355,2]
[350288343,1737769852227,-696.03,0.00018355,2]
[350288344,1737769852237,-519.2,0.00018356,2]
[350288345,1737769852246,-863.29,0.00018356,2]
[350288346,1737769852255,-1033.74,0.00018356,2]
[350288347,1737769852266,-694.04,0.00018356,2]
[350288348,1737769852275,-1210.79,0.00018356,2]
[350288349,1737769852284,-1419.56,0.00018356,2]
[350288350,1737769852294,-1263.23,0.00018356,2]
[350288351,1737769852303,-712.33,0.00018356,2]
[350288352,1737769852313,-649.85,0.00018356,2]
[350288353,1737769852322,-588.51,0.00018356,2]
[350288354,1737769852331,-944.84,0.00018356,2]
[350288355,1737769852340,-511.38,0.00018356,2]
[350288356,1737769852349,-365.96691425,0.00018356,2]
[350288357,1737769852359,-956.78,0.00018356,2]
[350288358,1737769852368,-500.0,0.00018356,2]
[350288359,1737769852377,-810.83,0.00018356,2]
[350288360,1737769852387,-1082.99668402,0.00018422,2]
[350288361,1737769852396,-726.04,0.00018492,2]
[350288362,1737769852405,-786.33,0.00018492,2]
[350288363,1737769852416,-500.0,0.00018492,2]
[350288364,1737769852426,-1141.35,0.00018492,2]
[350288365,1737769852436,-757.05,0.00018492,2]
[350288366,1737769852446,-1435.72,0.00018492,2]
[350288367,1737769852456,-632.77,0.00018492,2]
[350288368,1737769852466,-558.5,0.00018492,2]
[350288369,1737769852476,-729.14,0.00018492,2]
[350288370,1737769852486,-647.26,0.00018492,2]
[350288371,1737769852495,-500.0,0.00018492,2]
[350288372,1737769852505,-714.31,0.00018492,2]
[350288373,1737769852515,-696.03,0.00018492,2]
[350288374,1737769852525,-519.2,0.00018493,2]
[350288375,1737769852535,-863.29,0.00018493,2]
[350288376,1737769852544,-1033.74,0.00018493,2]
[350288377,1737769852553,-694.04,0.00018493,2]
[350288378,1737769852563,-1210.79,0.00018493,2]
[350288379,1737769852572,-1419.56,0.00018493,2]
[350288380,1737769852581,-1263.23,0.00018493,2]
[350288381,1737769852591,-712.33,0.00018493,2]
[350288382,1737769852601,-649.85,0.00018493,2]
[350288383,1737769852614,-588.51,0.00018493,2]
[350288384,1737769852624,-944.84,0.00018493,2]
[350288385,1737769852634,-511.38,0.00018493,2]
[350288386,1737769852644,-956.78,0.00018493,2]
[350288387,1737769852655,-500.0,0.00018493,2]
[350288388,1737769852664,-810.83,0.00018493,2]
[350288389,1737769852675,-675.05681481,0.0001853,2]
[350288390,1737769852685,-726.04,0.00018629,2]
[350288391,1737769852695,-786.33,0.00018629,2]
[350288392,1737769852706,-500.0,0.00018629,2]
[350288393,1737769852716,-1141.35,0.00018629,2]
[350288394,1737769852726,-757.05,0.00018629,2]
[350288395,1737769852736,-1435.72,0.00018629,2]
[350288396,1737769852746,-632.77,0.00018629,2]
[350288397,1737769852755,-558.5,0.00018629,2]
[350288398,1737769852765,-729.14,0.00018629,2]
[350288399,1737769852775,-647.26,0.00018629,2]
[350288400,1737769852784,-500.0,0.00018629,2]
[350288401,1737769852794,-714.31,0.00018629,2]
[350288402,1737769852803,-696.03,0.00018629,2]
[350288403,1737769852813,-519.2,0.0001863,2]
[350288404,1737769852822,-863.29,0.0001863,2]
[350288405,1737769852831,-1033.74,0.0001863,2]
[350288406,1737769852841,-694.04,0.0001863,2]
[350288407,1737769852850,-1210.79,0.0001863,2]
[350288408,1737769852859,-1419.56,0.0001863,2]
[350288409,1737769852869,-1263.23,0.0001863,2]
[350288410,1737769852882,-712.33,0.0001863,2]
[350288411,1737769852893,-649.85,0.0001863,2]
[350288412,1737769852903,-588.51,0.0001863,2]
[350288413,1737769852913,-944.84,0.0001863,2]
[350288414,1737769852927,-511.38,0.0001863,2]
[350288415,1737769852936,-956.78,0.0001863,2]
[350288416,1737769852946,-178.28260942,0.0001863,2]
[350288417,1737769852955,-444.03128026,0.00018657,2]
[350288418,1737769852965,-260.7746265,0.00018666,2]
[350288419,1737769852975,-726.04,0.00018766,2]
[350288420,1737769852985,-786.33,0.00018766,2]
[350288421,1737769852996,-643.01750102,0.00018766,2]
[350288422,1737769853008,-1141.35,0.00018766,2]
[350288423,1737769853017,-757.05,0.00018766,2]
[350288424,1737769853026,-1435.72,0.00018766,2]
[350288425,1737769853036,-632.77,0.00018766,2]
[350288426,1737769853045,-558.5,0.00018766,2]
[350288427,1737769853055,-729.14,0.00018766,2]
[350288428,1737769853064,-647.26,0.00018766,2]
[350288429,1737769853074,-500.0,0.00018766,2]
[350288430,1737769853083,-714.31,0.00018766,2]
[350288431,1737769853093,-696.03,0.00018766,2]
[350288432,1737769853103,-519.2,0.00018767,2]
[350288433,1737769853112,-863.29,0.00018767,2]
[350288434,1737769853122,-1033.74,0.00018767,2]
[350288435,1737769853131,-694.04,0.00018767,2]
[350288436,1737769853141,-1210.79,0.00018767,2]
[350288437,1737769853150,-1419.56,0.00018767,2]
[350288438,1737769853159,-1263.23,0.00018767,2]
[350288439,1737769853169,-712.33,0.00018767,2]
[350288440,1737769853178,-649.85,0.00018767,2]
[350288441,1737769853188,-588.51,0.00018767,2]
[350288442,1737769853197,-944.84,0.00018767,2]
[350288443,1737769853207,-511.38,0.00018767,2]
[350288444,1737769853217,-956.78,0.00018767,2]
[350288445,1737769853226,-10321.24173911,0.0001881,2]
[350288446,1737769853236,-21501.5690989,0.00018886,2]
[350288447,1737769853246,-726.04,0.00018903,2]
[350288448,1737769853255,-786.33,0.00018903,2]
[350288449,1737769853265,-1141.35,0.00018903,2]
[350288450,1737769853275,-757.05,0.00018903,2]
[350288451,1737769853284,-1435.72,0.00018903,2]
[350288452,1737769853294,-632.77,0.00018903,2]
[350288453,1737769853304,-558.5,0.00018903,2]
[350288454,1737769853313,-729.14,0.00018903,2]
[350288455,1737769853324,-647.26,0.00018903,2]
[350288456,1737769853333,-500.0,0.00018903,2]
[350288457,1737769853342,-714.31,0.00018903,2]
[350288458,1737769853352,-696.03,0.00018903,2]
[350288459,1737769853361,-519.2,0.00018904,2]
[350288460,1737769853371,-863.29,0.00018904,2]
[350288461,1737769853382,-1033.74,0.00018904,2]
[350288462,1737769853393,-694.04,0.00018904,2]
[350288463,1737769853403,-1210.79,0.00018904,2]
[350288464,1737769853412,-1419.56,0.00018904,2]
[350288465,1737769853421,-1263.23,0.00018904,2]
[350288466,1737769853431,-712.33,0.00018904,2]
[350288467,1737769853441,-649.85,0.00018904,2]
[350288468,1737769853450,-588.51,0.00018904,2]
[350288469,1737769853460,-944.84,0.00018904,2]
[350288470,1737769853470,-511.38,0.00018904,2]
[350288471,1737769853479,-956.78,0.00018904,2]
[350288472,1737769853489,-214.99498812,0.00018953,2]
[350288473,1737769853498,-500.0,0.00018986,2]
[350288474,1737769853507,-726.04,0.0001904,2]
[350288475,1737769853516,-786.33,0.0001904,2]
[350288476,1737769853527,-1141.35,0.0001904,2]
[350288477,1737769853536,-757.05,0.0001904,2]
[350288478,1737769853545,-1435.72,0.0001904,2]
[350288479,1737769853555,-632.77,0.0001904,2]
[350288480,1737769853564,-558.5,0.0001904,2]
[350288481,1737769853573,-729.14,0.0001904,2]
[350288482,1737769853582,-647.26,0.0001904,2]
[350288483,1737769853592,-500.0,0.0001904,2]
[350288484,1737769853601,-714.31,0.0001904,2]
[350288485,1737769853610,-696.03,0.0001904,2]
[350288486,1737769853619,-519.2,0.00019041,2]
[350288487,1737769853629,-863.29,0.00019041,2]
[350288488,1737769853639,-1033.74,0.00019041,2]
[350288489,1737769853648,-694.04,0.00019041,2]
[350288490,1737769853657,-1210.79,0.00019041,2]
[350288491,1737769853666,-1419.56,0.00019041,2]
[350288492,1737769853675,-1263.23,0.00019041,2]
[350288493,1737769853684,-712.33,0.00019041,2]
[350288494,1737769853693,-649.85,0.00019041,2]
[350288495,1737769853703,-588.51,0.00019041,2]
[350288496,1737769853712,-944.84,0.00019041,2]
[350288497,1737769853722,-511.38,0.00019041,2]
[350288498,1737769853732,-956.78,0.00019041,2]
[350288499,1737769853742,-2176.21317937,0.00019167,2]
[350288500,1737769853752,-726.04,0.00019177,2]
[350288501,1737769853764,-786.33,0.00019177,2]
[350288502,1737769853774,-1141.35,0.00019177,2]
[350288503,1737769853785,-757.05,0.00019177,2]
[350288504,1737769853796,-1435.72,0.00019177,2]
[350288505,1737769853806,-632.77,0.00019177,2]
[350288506,1737769853815,-558.5,0.00019177,2]
[350288507,1737769853826,-729.14,0.00019177,2]
[350288508,1737769853835,-647.26,0.00019177,2]
[350288509,1737769853844,-610.32107086,0.00019177,2]
[350288510,1737769853853,-714.31,0.00019177,2]
[350288511,1737769853863,-696.03,0.00019177,2]
[350288512,1737769853872,-678.27,0.00019178,2]
[350288513,1737769853881,-519.2,0.00019178,2]
[350288514,1737769853890,-863.29,0.00019178,2]
[350288515,1737769853900,-1033.74,0.00019178,2]
[350288516,1737769853909,-694.04,0.00019178,2]
[350288517,1737769853919,-1210.79,0.00019178,2]
[350288518,1737769853932,-1419.56,0.00019178,2]
[350288519,1737769853942,-1263.23,0.00019178,2]
[350288520,1737769853952,-712.33,0.00019178,2]
[350288521,1737769853963,-649.85,0.00019178,2]
[350288522,1737769853974,-588.51,0.00019178,2]
[350288523,1737769853983,-944.84,0.00019178,2]
[350288524,1737769853994,-511.38,0.00019178,2]
[350288525,1737769854004,-956.78,0.00019178,2]
[350288526,1737769854014,-260.77462647,0.00019205,2]
[350288527,1737769854023,-1794.0,0.000193,2]
[350288528,1737769854033,-726.04,0.00019314,2]
[350288529,1737769854043,-786.33,0.00019314,2]
[350288530,1737769854053,-1141.35,0.00019314,2]
[350288531,1737769854062,-757.05,0.00019314,2]
[350288532,1737769854071,-1435.72,0.00019314,2]
[350288533,1737769854081,-632.77,0.00019314,2]
[350288534,1737769854090,-558.5,0.00019314,2]
[350288535,1737769854099,-729.14,0.00019314,2]
[350288536,1737769854109,-647.26,0.00019314,2]
[350288537,1737769854119,-714.31,0.00019314,2]
[350288538,1737769854128,-696.03,0.00019314,2]
[350288539,1737769854138,-519.2,0.00019315,2]
[350288540,1737769854148,-863.29,0.00019315,2]
[350288541,1737769854158,-1033.74,0.00019315,2]
[350288542,1737769854167,-694.04,0.00019315,2]
[350288543,1737769854176,-1210.79,0.00019315,2]
[350288544,1737769854186,-1419.56,0.00019315,2]
[350288545,1737769854195,-1263.23,0.00019315,2]
[350288546,1737769854206,-712.33,0.00019315,2]
[350288547,1737769854215,-649.85,0.00019315,2]